Cogmind - Beta 13 @@@ ROGUE MODE // 2024.04.05 @ 08:56:38 Player: gabr Result: Destroyed by G-34 Mercenary with Small Laser Performance ------------- Evolutions (1) 500 Regions Visited (3) 600 Robots Destroyed (23) 115 Value Destroyed (579) 579 Prototype IDs (1) 20 Alien Tech Used (0) 0 Bonus (0) 0 TOTAL SCORE: 1814 Bonus ------- None Cogmind --------- Core Integrity 0/400 Matter 94/300 Energy 63/280 System Corruption 2% Temperature Cool (7) Movement Treading (160) Location -9/Storage Parts ------- > --- POWER (1) -------- Heavy Ion Engine > --- PROPULSION (4) --- Light Treads > --- UTILITY (2) ------ Improved Heat Sink Small Storage Unit > --- WEAPON (2) ------- Light Assault Rifle Grenade Launcher > --- INVENTORY (8) ---- Particle Gun Peak State ------------ > --- POWER ------------ Light Nuclear Core > --- PROPULSION ------- VTOL Module VTOL Module VTOL Module VTOL Module > --- UTILITY ---------- Small Storage Unit Light Armor Plating > --- WEAPON ----------- Beam Rifle Light Assault Rifle > --- INVENTORY -------- Heavy Ion Engine Improved Heat Sink Particle Gun Assault Rifle Grenade Launcher [Rating: 17] Favorites ----------- Power Light Nuclear Core Engine Ion Engine Power Core Light Nuclear Core Propulsion VTOL Module Treads Light Treads Flight Unit VTOL Module Utility Small Storage Unit Device Improved Heat Sink Storage Small Storage Unit Protection Light Armor Plating Weapon Assault Rifle Energy Gun Small Laser Ballistic Gun Assault Rifle Launcher Grenade Launcher Build | -11 -10 -9 -9 ------- Run | Yrd Mat Mat Sto Slots Evolved 2 | . . 2 . Power . | . . . . Propulsion 2 | . . 2 . Utility . | . . . . Weapon . | . . . . Parts Attached 39 | 6 14 8 11 Power 7 | 1 5 . 1 Engine 3 | 1 1 . 1 Core 4 | . 4 . . Reactor . | . . . . Propulsion 10 | 2 2 2 4 Treads 3 | 2 . . 1 Leg . | . . . . Wheel . | . . . . Hover . | . . . . Flight 7 | . 2 2 3 Utility 5 | 1 3 . 1 Device 2 | . 1 . 1 Storage 2 | 1 1 . . Processor . | . . . . Hackware . | . . . . Protection 1 | . 1 . . Artifact . | . . . . Weapon 17 | 2 4 6 5 Energy Gun 5 | 1 . 2 2 Energy Cannon . | . . . . Ballistic Gun 11 | 1 4 4 2 Ballistic Cannon . | . . . . Launcher 1 | . . . 1 Special Weapon . | . . . . Impact Weapon . | . . . . Slashing Weapon . | . . . . Piercing Weapon . | . . . . Special Melee Weapon . | . . . . Unidentified Prototypes 1 | . 1 . . Parts Lost 16 | . 2 1 13 Power 3 | . 2 . 1 Propulsion 7 | . . . 7 Utility 1 | . . . 1 Weapon 5 | . . 1 4 Highest Loss Streak 12 | . 1 1 12 To Critical Strikes . | . . . . Average Slot Usage (%) 82 | . 82 97 79 Engine 1 | . 2 . . Core 9 | . 9 11 7 Treads 6 | . 9 . . Flight 22 | . 17 44 30 Device 2 | . 2 . 2 Storage 10 | . 10 11 11 Protection 4 | . 2 11 6 Energy Gun 4 | . 5 . 4 Ballistic Gun 19 | . 21 19 13 Naked Turns . | . . . . Heaviest Build 19 | 13 19 16 18 Greatest Support 40 | 40 40 16 20 Greatest Overweight (x) 3 | . 3 . 3 Average Overweight (x) . | . . . . Largest Inventory Capacity 8 | 8 8 8 8 Average Capacity 7 | 7 7 8 8 Most Carried 8 | 5 8 6 8 Average Carried 5 | 3 5 4 5 Final Capacity 8 | 8 8 8 8 Final Carried 7 | 5 7 5 1 Class Distribution -------------------- 49% | Mutant 36% | Sprinter 13% | Scavenger-Mutant Dominant Class ---------------- Mutant | -10/Materials Mutant | -9/Materials Sprinter | -9/Storage Resources | -11 -10 -9 -9 ----------- Run | Yrd Mat Mat Sto Matter Collected 577 | 281 205 54 37 Remotely . | . . . . Salvage Created 915 | 80 447 54 334 Parts 59 | 2 27 4 26 Haulers Intercepted . | . . . . Recyclers Shooed . | . . . . Parts Field Recycled . | . . . . Retrieved Matter . | . . . . Parts Self-Destructed . | . . . . Prevented . | . . . . Kills | -11 -10 -9 -9 ------- Run | Yrd Mat Mat Sto Combat Hostiles Destroyed 17 | . 7 1 9 Guns 14 | . 7 1 6 AOE 3 | . . . 3 Classes Destroyed 6 | 1 4 1 . Worker 1 | . 1 . . Recycler 3 | 1 2 . . Watcher 2 | . 2 . . Swarmer 5 | . 3 . 2 Grunt 8 | . 4 . 4 Sentry 4 | . . 1 3 Best Kill Streak 8 | 1 8 1 8 Combat Bots Only 8 | . 5 1 8 Max Kills in Single Turn 3 | 1 2 1 3 Gunslinging 1 | . 1 . 1 Exploded 3 | . . . 3 Melee . | . . . . Uniques/NPCs Destroyed . | . . . . Combat | -11 -10 -9 -9 -------- Run | Yrd Mat Mat Sto Hostile Shots Fired 197 | . 50 14 133 Missed 65 | . 17 7 41 Damage Taken 1617 | . 383 107 1127 Core 465 | . 61 14 390 Absorbed by Shields . | . . . . Regen/Repaired (Parts) 19 | . 19 . . Core Remaining (%) 87 | 100 75 . . Volleys Fired 84 | 7 42 8 27 Largest 2 | 2 2 2 2 Hottest 76 | 60 60 40 76 Shots Fired 164 | 14 84 16 50 Gun 163 | 14 84 16 49 Cannon . | . . . . Launcher 1 | . . . 1 Special . | . . . . Kinetic 119 | 7 62 16 34 Thermal 44 | 7 22 . 15 Explosive 1 | . . . 1 Electromagnetic . | . . . . Robot Hit Streak 9 | 2 9 8 8 Robot Miss Streak 4 | 3 4 3 3 Penetration Max . | . . . . Secondary Targets 4 | . 1 . 3 Max Gunslinging Chain 1 | . 1 . 1 Shots Hit Robots 106 | 7 59 13 27 Core Hits 45 | 2 24 3 16 Critical Kills . | . . . . Critical Parts Destroyed 1 | . 1 . . Critical Strikes 2 | . 1 . 1 Burn 1 | . . . 1 Destroy 1 | . 1 . . Melee Attacks . | . . . . Impact . | . . . . Slashing . | . . . . Piercing . | . . . . Sneak Attacks . | . . . . Combat Hostiles . | . . . . Follow-up Attacks . | . . . . Damage Inflicted 1233 | 85 659 128 361 Guns 1163 | 85 659 128 291 Cannons . | . . . . Explosions 70 | . . . 70 Melee . | . . . . Ramming . | . . . . Kinetic 799 | 39 485 128 147 Thermal 364 | 46 174 . 144 Explosive 70 | . . . 70 Electromagnetic . | . . . . Impact . | . . . . Slashing . | . . . . Piercing . | . . . . Highest Corruption 2 | . . . 2 Average Corruption 2 | . . . 2 Corruption Purged . | . . . . Corruption Blocked . | . . . . Effects 1 | . . . 1 Message Errors 1 | . . . 1 Overload Shots . | . . . . Overflow Damage . | . . . . Projectiles . | . . . . Explosions . | . . . . Melee . | . . . . Knockbacks . | . . . . Impact . | . . . . Kinetic . | . . . . Secondary . | . . . . Self-Inflicted Damage 32 | . . . 32 Shots 1 | . . . 1 Rammed . | . . . . Targets Rammed . | . . . . Kicked . | . . . . Crushed . | . . . . Highest Temperature 121 | . 82 64 121 Average Temperature 30 | . 24 36 33 Received Heat Transfer 633 | . 183 54 396 Siege Activations . | . . . . Robots Corrupted . | . . . . Combat Hostiles . | . . . . Parts Fried . | . . . . Impact Corruptions . | . . . . Robots Melted . | . . . . Combat Hostiles . | . . . . Parts Melted 2 | . . . 2 Heat Transferred 933 | 100 400 . 433 Parts Sabotaged . | . . . . Parts Stolen . | . . . . Parts Stripped . | . . . . Power Chain Reactions . | . . . . Alert | -11 -10 -9 -9 ------- Run | Yrd Mat Mat Sto Peak Influence 257 | 5 257 59 211 Initial 24 | . 3 24 24 Average 91 | 1 146 41 52 Maximum Alert Level 1 | . 1 . 1 Low Security (%) 84 | 100 71 100 96 Level 1 15 | . 28 . 3 Level 2 . | . . . . Level 3 . | . . . . Level 4 . | . . . . Level 5 . | . . . . High Security . | . . . . Max Security . | . . . . Squads Dispatched 1 | . . . 1 Investigation . | . . . . Extermination . | . . . . Reinforcement 1 | . . . 1 Assault . | . . . . Garrison . | . . . . Intercept . | . . . . Searches Triggered . | . . . . Construction Impeded . | . . . . Haulers Reinforced . | . . . . Active Scanning Responses . | . . . . Cargo Convoy Interrupts . | . . . . Stealth | -11 -10 -9 -9 --------- Run | Yrd Mat Mat Sto Distress Signals 1 | . 1 . . Communications Jammed . | . . . . Distress Signals . | . . . . Times Spotted 31 | . 14 1 16 Peak Tracking Total 12 | . 6 1 12 Tactical Retreats 3 | . . . 3 Traps | -11 -10 -9 -9 ------- Run | Yrd Mat Mat Sto Traps Triggered 1 | . . . 1 Indirectly . | . . . . Trap Hack Attempts . | . . . . Triggered . | . . . . Disarmed . | . . . . Reprogrammed . | . . . . Reused . | . . . . Traps Extracted . | . . . . Installed . | . . . . Triggered . | . . . . Machines | -11 -10 -9 -9 ---------- Run | Yrd Mat Mat Sto Machines Disabled . | . . . . Max in Single Turn . | . . . . Machines Repaired . | . . . . Machines Dismantled . | . . . . Machines Sabotaged . | . . . . Overloaded Fab Kills . | . . . . Hacking | -11 -10 -9 -9 --------- Run | Yrd Mat Mat Sto Machines Accessed 3 | . 2 1 . Terminals 2 | . 1 1 . Fabricators . | . . . . Repair Stations 1 | . 1 . . Recycling Units . | . . . . Scanalyzers . | . . . . Garrison Access . | . . . . Total Hacks 8 | . 6 2 . Successful 3 | . 3 . . Failed 5 | . 3 2 . Catastrophic 1 | . . 1 . Database Lockouts . | . . . . Manual 2 | . . 2 . Terminals 4 | . 2 2 . Fabricators . | . . . . Repair Stations 4 | . 4 . . Recycling Units . | . . . . Scanalyzers . | . . . . Garrison Access . | . . . . Terminal Hacks 1 | . 1 . . Alert Level 1 | . 1 . . Fabricator Hacks . | . . . . Repair Station Hacks 2 | . 2 . . Scan Component 1 | . 1 . . Repair 1 | . 1 . . Recycling Unit Hacks . | . . . . Scanalyzer . | . . . . Garrison Access Hacks . | . . . . Unauthorized Hacks . | . . . . Terminals . | . . . . Fabricators . | . . . . Repair Stations . | . . . . Recycling Units . | . . . . Scanalyzers . | . . . . Garrison Access . | . . . . Data Cores Recovered . | . . . . Used . | . . . . Hacking Detections 2 | . 1 1 . Full Trace Events 1 | . 1 . . Feedback Events . | . . . . Feedback Blocked . | . . . . Robot Schematics Acquired . | . . . . Robots Built . | . . . . Authchips . | . . . . Time . | . . . . Total Robot Build Rating . | . . . . Part Schematics Acquired . | . . . . Parts Built . | . . . . Authchips . | . . . . Time . | . . . . Total Part Build Rating . | . . . . Parts Repaired 1 | . 1 . . Time 38 | . 38 . . Parts Recycled . | . . . . Recycled Matter . | . . . . Retrieved Matter . | . . . . Retrieved Components . | . . . . Parts Scanalyzed . | . . . . Part Schematics Acquired . | . . . . Parts Damaged . | . . . . Bothacking | -11 -10 -9 -9 ------------ Run | Yrd Mat Mat Sto Used RIF Installer . | . . . . Robots Hacked . | . . . . Non-combat . | . . . . Combat . | . . . . Robot Hacks Applied . | . . . . Relay Couplers Released . | . . . . Fabnet Peak Effective % . | . . . . Robots Rewired . | . . . . Allies Hacked . | . . . . Hacks Repelled . | . . . . Allies | -11 -10 -9 -9 -------- Run | Yrd Mat Mat Sto Total Allies . | . . . . Largest Group . | . . . . Highest-Rated Group . | . . . . Highest-Rated Ally . | . . . . Total Orders . | . . . . Ally Attacks . | . . . . Total Damage . | . . . . Kills . | . . . . Allies Corrupted . | . . . . Allies Melted . | . . . . Intel | -11 -10 -9 -9 ------- Run | Yrd Mat Mat Sto Robot Analysis Total . | . . . . Derelict Logs Recovered . | . . . . Drone Launches . | . . . . Drone Recoveries . | . . . . Exploration | -11 -10 -9 -9 ------------- Run | Yrd Mat Mat Sto Turns Passed 844 | 185 457 45 157 Spaces Moved 668 | 96 349 43 180 Core 3 | 2 . . 1 Treads 154 | 94 57 . 3 Legs . | . . . . Wheels . | . . . . Hover . | . . . . Flight 511 | . 292 43 176 Fastest Speed 26 | 50 32 26 26 Average Speed 72 | 157 73 26 35 Slowest Speed 280 | 160 275 26 280 Overloaded Moves . | . . . . Propulsion Burnouts . | . . . . Robots Hopped 12 | . 10 . 2 Cave-ins Triggered . | . . . . Exploration Rate (%) 23 | 5 49 5 36 Regions Visited 3 Branch Regions 1 Pre-discovered Areas . | . . . . Known Exits Taken . | . . . . Unknown Exits Taken 3 | 1 1 1 . Scrap Searched . | . . . . Spaces Dug . | . . . . Terrain Destroyed 6 | . . . 6 Melee . | . . . . Projectile . | . . . . AOE 6 | . . . 6 Terrain Rammed . | . . . . Walls Destroyed . | . . . . Machines Disabled . | . . . . Actions | -11 -10 -9 -9 --------- Run | Yrd Mat Mat Sto Total 858 | 113 461 60 224 Wait 51 | . 47 . 4 Move 641 | 95 328 42 176 Hop 12 | . 10 . 2 Pick Up 14 | 5 6 . 3 Fast Attach 21 | 6 11 1 3 Attach 14 | . 2 4 8 Detach 8 | . 5 2 1 Swap 4 | . 1 3 . Drop 9 | . 9 . . Fire 84 | 7 42 8 27 Melee . | . . . . Ram . | . . . . Kick . | . . . . Crush . | . . . . Escape Stasis . | . . . . Rewire . | . . . . Trap . | . . . . Miscellaneous . | . . . . Route ------- -11/Scrapyard -10/Materials -9/Materials -9/Storage History --------- Turn | Location | Event 7 | -11/Scrapyard | Discovered new exit (range 15) 186 | -11/Scrapyard | Entered Materials 311 | -10/Materials | Build established: Mutant 541 | -10/Materials | Discovered new exit (range 15) 638 | -10/Materials | Repaired Lgt. Nuclear Core 643 | -10/Materials | Entered another Materials area 643 | -9/Materials | Evolved 2 slots: Propulsion x2 648 | -9/Materials | Discovered new exit (range 15) 688 | -9/Materials | Entered Storage 808 | -9/Storage | Core integrity fell below 50% 829 | -9/Storage | Core integrity fell below 20% 845 | -9/Storage | Destroyed by G-34 Mercenary with Small Laser Last Messages --------------- 00820_ R-06 Scavenger collects Sml. Laser. 00821_ S-10 Pest destroyed. 00821_ Switching to secondary target: Y-45 Defender. 00823_ R-06 Scavenger collects Lgt. Assault Rifle. 00824_ G-34 Mercenary destroyed. 00824_ Switching to secondary target: Y-45 Defender. 00825_ Lgt. Assault Rifle destroyed. 00826_ R-06 Scavenger collects Aluminum Leg. 00829_ R-06 Scavenger collects Heat Sink. 00829_ Beam Rifle destroyed. 00832_ Acquired Lgt. Treads. 00832_ R-06 Scavenger collects Aluminum Leg. 00834_ Transfer Shaft disabled. 00834_ G-34 Mercenary suffers critical hit (Burn). 00840_ Y-45 Defender destroyed. 00840_ Sml. Laser melted. 00840_ G-34 Mercenary destroyed. 00840_ Y-45 Defender destroyed. 00843_ Acquired Lgt. Assault Rifle. 00844_ R-06 Scavenger collects Flight Unit. Map ----- +----------------------------------------------------+ | ??????????????????????????????? | | ???????????????????????????? | | ??????????????????????????? | | ???????????????????????????" | | ??????????????????????????"" | | ?????#########???????#????"" | | ?????#= ?????##?# ??? | | ?????# #??#"""#?# ?? | | ?????# """ #?##"Y"### """ | | ?????# """ #?# # """ | | ?????# """ #?#""" = # """ | | ?????? ???#""" + | | ????####+######""" # | | ????# / # | | ????# ###### # | | ????# #????###+##+# | | ????# ######## | | ?####+## #"""""## a####+#####+# | | ?# # #""T""## #??????# | | ?# # % r +??????# | | ?? # ##??????#""" | | ?# # g #???????#""" | | #### # #???????#""" | | # T! #???????# | | # =*[!= ############# | | # [%%@ r "T" | | # """ % g ####### ####### | | # ""%= # #?????# #?????? | | # """!!# #?????# #?????? | | ###### # #?????#+##+#?????? | | ?????### #???????? ?????? | | ???????# a#???????? ?????? | | ???????# #??????? ????? | | ??????? /???????"" ""????? | | ??????? # ?????""" """???? | | ???????#### # !????""" """???? | | ??????????? #?!=?? ??? | | ??????????? +???????? ?????? | | ??????????? #????????#/#?????? | | ???????????? ?????????? ??????? | | ??????????????????????? ??????? | | ???????????????????????T??????? | | ??????????????????????? ??????? | | ??????????????????????????????? | | ??????????????????????????????? | | ??????????????????????????????? | | ??????????????????????????????? | | ??????????????????????????????? | | ??????????????????????????????? | | ??????????????????????????????? | +----------------------------------------------------+ Best States ------------- Heat Dissipation 42 Energy Generation 14 Energy Capacity 280 Matter Stores 300 Matter Capacity 300 Sight Range 16 Terrain Scan Density 10 Armor Coverage 150 Evasion (%) 64 Recoil Reduction 2 Item Schematics ----------------- None Robot Schematics ------------------ None Fabricated ------------ Nothing Alien Tech Used ----------------- None Achievements -------------- None Challenges ------------ None Game ------ Seed TargetScatterTendrils Manual? 0 Play Time 00:10:49 Cumulative 46.1 hours Start 2024.04.05 @ 08:34:05 End 2024.04.05 @ 08:56:38 Sessions 1 Manual Loads 0 Difficulty Rogue Special Mode None Game No. 104 Rogue 104 Adventurer 0 Explorer 0 Win Type - Total 0 Types 0/0/0/0/0/0/0/0/0 Lore% 20 Gallery% 35 Achievement% 26 Wizard Run 0 Options --------- Layout 0 ASCII 0 Keyboard 1 Movement Numpad Keybinds 0 Fullscreen 1 Font 24/Terminus Map View 76x50 Zoom Use 0% Tactical HUD 1 Map Filters NONE Filters NONE Steam 1 RUN: c083af09-d672-4b27-bb44-49bd8ab0847d